Cogmind - Beta 14 @@@ ROGUE MODE // 2024.10.20 @ 08:08:50 Player: Ender Result: Destroyed by Y-45 Defender with Beam Rifle Performance ------------- Evolutions (2) 1000 Regions Visited (3) 600 Robots Destroyed (17) 85 Value Destroyed (489) 489 Prototype IDs (0) 0 Alien Tech Used (0) 0 Bonus (0) 0 TOTAL SCORE: 2174 Bonus ------- None Cogmind --------- Core Integrity 0/550 Matter 248/300 Energy 100/100 System Corruption 0% Temperature Cool (9) Movement Core (50) Location -8/Materials Parts ------- > --- POWER (2) -------- (None) > --- PROPULSION (4) --- (None) > --- UTILITY (3) ------ Signal Interpreter > --- WEAPON (2) ------- Heavy Mace > --- INVENTORY (5) ---- (None) Peak State ------------ > --- POWER ------------ Light Nuclear Core > --- PROPULSION ------- Flight Unit Flight Unit Flight Unit Flight Unit > --- UTILITY ---------- Improved Targeting Computer Improved Targeting Computer > --- WEAPON ----------- Assault Rifle Assault Rifle > --- INVENTORY -------- Rocket Launcher Datajack [Rating: 13] Favorites ----------- Power Light Nuclear Core Engine Ion Engine Power Core Light Nuclear Core Propulsion Flight Unit Wheel Wheel Flight Unit Flight Unit Utility Heat Sink Device Heat Sink Processor Improved Targeting Computer Weapon Assault Rifle Energy Gun EM Pulse Gun Ballistic Gun Assault Rifle Launcher Rocket Launcher Impact Weapon Heavy Mace Special Melee Weapon Datajack Build | -11 -10 -9 -8 ------- Run | Yrd Mat Mat Mat Slots Evolved 4 | . . 2 2 Power 1 | . . . 1 Propulsion 2 | . . 2 . Utility 1 | . . . 1 Weapon . | . . . . Parts Attached 30 | 7 14 3 6 Power 3 | 2 1 . . Engine 2 | 2 . . . Core 1 | . 1 . . Reactor . | . . . . Propulsion 6 | 2 2 2 . Treads . | . . . . Leg . | . . . . Wheel 2 | 2 . . . Hover . | . . . . Flight 4 | . 2 2 . Utility 7 | 1 3 . 3 Device 4 | 1 1 . 2 Storage . | . . . . Processor 3 | . 2 . 1 Hackware . | . . . . Protection . | . . . . Artifact . | . . . . Weapon 14 | 2 8 1 3 Energy Gun 1 | . . . 1 Energy Cannon . | . . . . Ballistic Gun 6 | 2 4 . . Ballistic Cannon . | . . . . Launcher 1 | . . 1 . Special Weapon . | . . . . Impact Weapon 1 | . . . 1 Slashing Weapon . | . . . . Piercing Weapon . | . . . . Special Melee Weapon 5 | . 4 . 1 Unidentified Prototypes . | . . . . Parts Lost 13 | . . 4 9 Power 1 | . . . 1 Propulsion 4 | . . 2 2 Utility 4 | . . . 4 Weapon 4 | . . 2 2 Highest Loss Streak 8 | . . 4 8 To Critical Strikes . | . . . . Average Slot Usage (%) 81 | . 95 94 29 Engine 3 | . 6 . . Core 7 | . 7 11 4 Wheel 12 | . 21 . . Flight 13 | . 6 41 7 Device 11 | . 20 . . Processor 9 | . 3 22 14 Ballistic Gun 19 | . 26 19 . Special Melee Weapon 1 | . 1 . . Peak Build Rating 13 | 6 11 13 10 Average Rating 8 | 3 7 12 5 On Entrance 6 | . 6 11 9 Naked Turns . | . . . . Heaviest Build 11 | 10 11 9 7 Greatest Support 20 | 20 20 16 8 Greatest Overweight (x) 1 | . 1 . 1 Average Overweight (x) . | . . . . Largest Inventory Capacity 5 | 5 5 5 5 Average Capacity 5 | 5 5 5 5 Most Carried 5 | 3 5 5 4 Average Carried 3 | . 4 2 1 Final Capacity 5 | 5 5 5 5 Final Carried 4 | 2 4 3 . Class Distribution -------------------- 82% | Mutant 17% | Sprinter Dominant Class ---------------- Mutant | -10/Materials Sprinter | -9/Materials Mutant | -8/Materials Resources | -11 -10 -9 -8 ----------- Run | Yrd Mat Mat Mat Matter Collected 766 | 268 299 38 161 Remotely 161 | . . . 161 Salvage Created 596 | 38 362 179 17 Parts 42 | 4 23 14 1 Haulers Intercepted . | . . . . Recyclers Shooed . | . . . . Parts Field Recycled . | . . . . Retrieved Matter . | . . . . Parts Self-Destructed . | . . . . Prevented . | . . . . Kills | -11 -10 -9 -8 ------- Run | Yrd Mat Mat Mat Combat Hostiles Destroyed 14 | 1 9 4 . Guns 14 | 1 9 4 . Classes Destroyed 6 | 1 2 2 1 Worker 1 | . 1 . . Operator 1 | . . . 1 Watcher 1 | . . 1 . Swarmer 2 | . 2 . . Grunt 11 | 1 7 3 . Brawler 1 | . . 1 . Best Kill Streak 3 | 1 3 3 1 Combat Bots Only 3 | 1 2 3 . Max Kills in Single Turn 1 | 1 1 1 1 Gunslinging . | . . . . Exploded . | . . . . Melee . | . . . . Uniques/NPCs Destroyed . | . . . . Combat | -11 -10 -9 -8 -------- Run | Yrd Mat Mat Mat Hostile Shots Fired 152 | 4 42 39 67 Missed 55 | 1 20 21 13 Damage Taken 1417 | 32 235 267 883 Core 747 | 11 93 80 563 Absorbed by Shields . | . . . . Core Remaining (%) 77 | 95 58 80 . Volleys Fired 77 | 3 41 26 7 Largest 2 | 2 2 2 1 Hottest 40 | 40 40 40 40 Shots Fired 132 | 6 79 40 7 Gun 131 | 6 79 39 7 Cannon . | . . . . Launcher 1 | . . 1 . Special . | . . . . Kinetic 124 | 6 79 39 . Thermal . | . . . . Explosive 1 | . . 1 . Electromagnetic 7 | . . . 7 Robot Hit Streak 10 | 1 6 8 10 Robot Miss Streak 3 | 2 3 2 1 Penetration Max . | . . . . Secondary Targets 2 | . 1 1 . Max Gunslinging Chain 1 | . 1 1 . Shots Hit Robots 78 | 2 41 26 9 Core Hits 28 | 2 16 8 2 Critical Kills 3 | . 3 . . Critical Parts Destroyed 1 | . . 1 . Critical Strikes 5 | . 3 1 1 Destroy 4 | . 3 1 . Smash 1 | . . . 1 Melee Attacks 8 | . . . 8 Impact 7 | . . . 7 Slashing . | . . . . Piercing . | . . . . Sneak Attacks . | . . . . Combat Hostiles . | . . . . Follow-up Attacks . | . . . . Damage Inflicted 926 | 28 435 283 180 Guns 813 | 28 435 283 67 Cannons . | . . . . Explosions 31 | . . . 31 Melee 82 | . . . 82 Ramming . | . . . . Kinetic 746 | 28 435 283 . Thermal 31 | . . . 31 Explosive . | . . . . Electromagnetic 67 | . . . 67 Impact 82 | . . . 82 Slashing . | . . . . Piercing . | . . . . Highest Corruption . | . . . . Average Corruption . | . . . . Corruption Purged . | . . . . Corruption Blocked . | . . . . Overload Shots . | . . . . Overflow Damage 12 | . . . 12 Projectiles . | . . . . Explosions 11 | . . . 11 Melee 1 | . . . 1 Knockbacks . | . . . . Impact . | . . . . Kinetic . | . . . . Secondary . | . . . . Self-Inflicted Damage 45 | . . . 45 Shots 1 | . . . 1 Rammed . | . . . . Targets Rammed . | . . . . Kicked . | . . . . Crushed . | . . . . Highest Temperature 24 | . . 8 24 Average Temperature 7 | . . 4 12 Received Heat Transfer 498 | 18 93 108 279 Siege Activations . | . . . . Robots Corrupted . | . . . . Combat Hostiles . | . . . . Parts Fried . | . . . . Impact Corruptions 1 | . . . 1 Robots Melted . | . . . . Combat Hostiles . | . . . . Parts Melted . | . . . . Heat Transferred 50 | . . . 50 Parts Sabotaged . | . . . . Parts Stolen . | . . . . Parts Stripped . | . . . . Power Chain Reactions 1 | . . . 1 Alert | -11 -10 -9 -8 ------- Run | Yrd Mat Mat Mat Peak Influence 323 | 20 228 323 242 Initial 131 | . 13 32 131 Average 117 | 3 99 154 166 Maximum Alert Level 1 | . 1 1 1 Low Security (%) 81 | 100 85 71 76 Level 1 18 | . 14 28 23 Level 2 . | . . . . Level 3 . | . . . . Level 4 . | . . . . Level 5 . | . . . . High Security . | . . . . Max Security . | . . . . Squads Dispatched 4 | . 2 . 2 Investigation 1 | . 1 . . Extermination . | . . . . Reinforcement 1 | . 1 . . Assault . | . . . . Garrison 2 | . . . 2 Intercept . | . . . . Searches Triggered . | . . . . Construction Impeded . | . . . . Haulers Reinforced . | . . . . Active Scanning Responses . | . . . . Cargo Convoy Interrupts . | . . . . Stealth | -11 -10 -9 -8 --------- Run | Yrd Mat Mat Mat Distress Signals 1 | . 1 . . Communications Jammed . | . . . . Distress Signals . | . . . . Times Spotted 35 | 1 13 11 10 Peak Tracking Total 6 | 1 3 5 6 Tactical Retreats 8 | . . 5 3 Traps | -11 -10 -9 -8 ------- Run | Yrd Mat Mat Mat Traps Triggered 1 | . . 1 . Indirectly . | . . . . Trap Hack Attempts 46 | . 46 . . Triggered . | . . . . Disarmed 3 | . 3 . . Reprogrammed 1 | . 1 . . Reused . | . . . . Traps Extracted . | . . . . Installed . | . . . . Triggered . | . . . . Machines | -11 -10 -9 -8 ---------- Run | Yrd Mat Mat Mat Machines Disabled . | . . . . Max in Single Turn . | . . . . Machines Repaired . | . . . . Machines Dismantled . | . . . . Machines Sabotaged . | . . . . Overloaded Fab Kills . | . . . . Hacking | -11 -10 -9 -8 --------- Run | Yrd Mat Mat Mat Machines Accessed 6 | . 3 3 . Terminals 3 | . 2 1 . Fabricators . | . . . . Repair Stations 1 | . . 1 . Recycling Units 2 | . 1 1 . Scanalyzers . | . . . . Garrison Access . | . . . . Total Hacks 16 | . 7 9 . Successful 10 | . 5 5 . Failed 6 | . 2 4 . Catastrophic . | . . . . Database Lockouts . | . . . . Manual . | . . . . Terminals 8 | . 5 3 . Fabricators . | . . . . Repair Stations 4 | . . 4 . Recycling Units 4 | . 2 2 . Scanalyzers . | . . . . Garrison Access . | . . . . Terminal Hacks 5 | . 3 2 . Record 1 | . 1 . . Emergency Access Points 1 | . . 1 . Alert Level 2 | . 1 1 . Locate Traps 1 | . 1 . . Fabricator Hacks . | . . . . Repair Station Hacks 1 | . . 1 . Scan Component 1 | . . 1 . Recycling Unit Hacks 4 | . 2 2 . Process 2 | . 1 1 . Report Inventory 2 | . 1 1 . Scanalyzer . | . . . . Garrison Access Hacks . | . . . . Unauthorized Hacks . | . . . . Terminals . | . . . . Fabricators . | . . . . Repair Stations . | . . . . Recycling Units . | . . . . Scanalyzers . | . . . . Garrison Access . | . . . . Data Cores Recovered . | . . . . Used . | . . . . Hacking Detections 4 | . 2 2 . Full Trace Events 2 | . 1 1 . Feedback Events . | . . . . Feedback Blocked . | . . . . Robot Schematics Acquired . | . . . . Robots Built . | . . . . Authchips . | . . . . Time . | . . . . Total Robot Build Rating . | . . . . Part Schematics Acquired . | . . . . Parts Built . | . . . . Authchips . | . . . . Time . | . . . . Total Part Build Rating . | . . . . Parts Repaired . | . . . . Time . | . . . . Parts Recycled . | . . . . Recycled Matter . | . . . . Retrieved Matter . | . . . . Retrieved Components . | . . . . Parts Scanalyzed . | . . . . Part Schematics Acquired . | . . . . Parts Damaged . | . . . . Bothacking | -11 -10 -9 -8 ------------ Run | Yrd Mat Mat Mat Used RIF Installer . | . . . . Robots Hacked 1 | . . . 1 Non-combat . | . . . . Combat 1 | . . . 1 Robot Hacks Applied 1 | . . . 1 parse_system 1 | . . . 1 Relay Couplers Released . | . . . . Fabnet Peak Effective % . | . . . . Robots Rewired . | . . . . Allies Hacked . | . . . . Hacks Repelled . | . . . . Allies | -11 -10 -9 -8 -------- Run | Yrd Mat Mat Mat Total Allies . | . . . . Largest Group . | . . . . Highest-Rated Group . | . . . . Highest-Rated Ally . | . . . . Total Orders . | . . . . Ally Attacks . | . . . . Total Damage . | . . . . Kills . | . . . . Allies Corrupted . | . . . . Allies Melted . | . . . . Intel | -11 -10 -9 -8 ------- Run | Yrd Mat Mat Mat Robot Analysis Total . | . . . . Derelict Logs Recovered . | . . . . Drone Launches . | . . . . Drone Recoveries . | . . . . Exploration | -11 -10 -9 -8 ------------- Run | Yrd Mat Mat Mat Turns Passed 966 | 69 510 190 197 Spaces Moved 1112 | 62 340 372 338 Core 162 | 16 . . 146 Treads . | . . . . Legs . | . . . . Wheels 323 | 46 277 . . Hover . | . . . . Flight 627 | . 63 372 192 Fastest Speed 31 | 50 80 31 37 Average Speed 54 | 72 86 31 45 Slowest Speed 120 | 80 117 37 120 Overloaded Moves . | . . . . Propulsion Burnouts . | . . . . Robots Hopped 2 | . . 2 . Cave-ins Triggered . | . . . . Exploration Rate (%) 29 | 5 47 38 26 Regions Visited 3 Branch Regions . Pre-discovered Areas . | . . . . Known Exits Taken . | . . . . Unknown Exits Taken 3 | 1 1 1 . Scrap Searched . | . . . . Spaces Dug . | . . . . Terrain Destroyed 14 | . . 9 5 Melee . | . . . . Projectile . | . . . . AOE 14 | . . 9 5 Terrain Rammed . | . . . . Walls Destroyed . | . . . . Machines Disabled . | . . . . Actions | -11 -10 -9 -8 --------- Run | Yrd Mat Mat Mat Total 1319 | 79 475 403 362 Wait 10 | . 10 . . Move 1105 | 61 339 367 338 Hop 2 | . . 2 . Pick Up 28 | 8 14 3 3 Fast Attach . | . . . . Attach 17 | 6 2 3 6 Detach . | . . . . Swap 13 | 1 12 . . Drop 13 | . 11 2 . Fire 77 | 3 41 26 7 Melee 8 | . . . 8 Ram . | . . . . Kick . | . . . . Crush . | . . . . Escape Stasis . | . . . . Rewire . | . . . . Trap 46 | . 46 . . Miscellaneous . | . . . . Route ------- -11/Scrapyard -10/Materials -9/Materials -8/Materials History --------- Turn | Location | Event 2 | -11/Scrapyard | Met Revision 17 47 | -11/Scrapyard | Discovered new exit (range 8) 70 | -11/Scrapyard | Entered Materials 303 | -10/Materials | Build established: Mutant 438 | -10/Materials | Discovered new exit (range 16) 580 | -10/Materials | Entered another Materials area 580 | -9/Materials | Evolved 2 slots: Propulsion x2 724 | -9/Materials | Discovered new exit (range 16) 770 | -9/Materials | Entered another Materials area 770 | -8/Materials | Evolved 2 slots: Power x1, Utility x1 797 | -8/Materials | Lost 4 parts (2n2w) 856 | -8/Materials | Garrison activated, responded to threat 893 | -8/Materials | Core integrity fell below 50% 926 | -8/Materials | Lost 8 parts (1p2n3u2w) 961 | -8/Materials | Core integrity fell below 20% 967 | -8/Materials | Destroyed by Y-45 Defender with Beam Rifle Last Messages --------------- Heavy class robot, which gives away their position but also has a chance to call more squads to reinforce the local area while you are within range. 00928_ Connecting with Terminal... 00928_ Current location identified: Materials 00937_ Acquired Hvy. Mace. 00940_ Acquired Hpw. Tractor Beam. 00947_ Y-45 Defender suffers critical hit (Smash). 00953_ Destroyed Heat Sink. 00953_ Y-45 Defender system corrupted by crushing effect. 00957_ Acquired 161 matter. [Achievement: Use The Force] 00958_ Y-45 Defender misfires. 00960_ Penetrated by Slug. 00962_ Critical hit (Burn: +37). 00962_ Hpw. Tractor Beam destroyed. 00963_ Penetrated by Slug. Map ----- +----------------------------------------------------+ | | | | | | | | | | | | | | | | | | | | | | | ??????????????????????????????????? | | ??????????????????????????????????? | | ??????????????????????????????????? | | ??????????????????????????????????? | | ??????????????????????????????????? | | ??????????????????????????????????? | | ??????????????????????????????????? | | ??????????????????????????????????? | | ?????###??????????????????????????? | | ###### #??########???############## | | # == #??# #???# | | # == #### #???# | | # =# # #???# | | # # # """ !#???# ########## | | # "Y" /Y @ """ #???# #????????? | | # """ #Yh# """ #???# #????????? | | ######## ##########?# #????????? | | # # ## #????????? | | #"" + ## #????????? | | #"" # """"" ## #????????? | | #"T # """"" ## #????????? | | #"" ## """"" ## #????????? | | #"" ## ## #????????? | | # ## ## ########?? | | # """ + ## # ##? | | # """ ## ## # """ ?? | | # """ ####### ## # """ #?? | | # #?????# ## # """ #?? | | # #?????# ## #! #?? | | ###########?# ## # =???? | | ??# ! ! # ## ###+###### | | ??# ! # | | ??# + | | ??? """"""" # """ | | ?????"""""" # """ " | | ??????"""""?# """ """" | | ???????""""?# """" | | ???????"""??# """ | | ????????##??# | +----------------------------------------------------+ Best States ------------- Heat Dissipation 45 Energy Generation 14 Energy Capacity 250 Matter Stores 294 Matter Capacity 300 Sight Range 16 Terrain Scan Density 10 Evasion (%) 63 Targeting Accuracy 12 Item Schematics ----------------- None Robot Schematics ------------------ None Fabricated ------------ Nothing Alien Tech Used ----------------- None Achievements -------------- Hehehe Troublemaker Uninvited Guest Use The Force Challenges ------------ None Game ------ Seed ChargeCompositeProcessor Manual? 0 Play Time 00:26:29 Cumulative 1.1 hours Start 2024.10.20 @ 07:43:05 End 2024.10.20 @ 08:08:50 Sessions 1 Manual Loads 0 Difficulty Rogue Special Mode None Game No. 3 Rogue 3 Adventurer 0 Explorer 0 Win Type - Total 0 Types 0/0/0/0/0/0/0/0/0 Lore% 0 Gallery% 2 Achievement% 4 Wizard Run 0 Options --------- Layout 1 ASCII 0 Keyboard 0 Movement Mouse Keybinds 0 Fullscreen 1 Font 24/Smallcaps Map View 50x35 Zoom Use 0% Tactical HUD 1 Map Filters NONE Filters NONE Steam 1 RUN: 8398cfbd-48b7-4827-a3ee-e14b9a7694e5